Cogmind - Beta 13 @@@ ROGUE MODE // 2024.04.24 @ 19:44:56 Player: Exceptionally Mediocre Result: Destroyed by YI-UF0 with YI-UF0's Doublenader Performance ------------- Evolutions (0) 0 Regions Visited (2) 400 Robots Destroyed (31) 155 Value Destroyed (681) 681 Prototype IDs (0) 0 Alien Tech Used (0) 0 Bonus (0) 0 TOTAL SCORE: 1236 Bonus ------- None Cogmind --------- Core Integrity 0/250 Matter 264/300 Energy 250/250 System Corruption 1% Temperature Cool (0) Movement Treading (160) Location -10/Mines Parts ------- > --- POWER (1) -------- Ion Engine > --- PROPULSION (2) --- Improved Treads Improved Treads > --- UTILITY (2) ------ Large Storage Unit Hardened Light Armor Plating > --- WEAPON (2) ------- Assault Rifle Assault Rifle > --- INVENTORY (15) --- Light Ion Engine Light Ion Engine Light Treads Light Treads Improved Treads Improved Treads Improved Heat Sink Structural Scanner Propulsion Shielding Propulsion Shielding Hardened Light Armor Plating Hardened Light Armor Plating Hardened Light Armor Plating Hacking Suite Assault Rifle Peak State ------------ > --- POWER ------------ Light Nuclear Core > --- PROPULSION ------- Improved Treads Improved Treads > --- UTILITY ---------- Small Storage Unit Hardened Light Armor Plating > --- WEAPON ----------- Assault Rifle Assault Rifle > --- INVENTORY -------- Light Ion Engine Light Treads Light Treads Light Treads Improved Treads Improved Treads Assault Rifle Assault Rifle [Rating: 13] Favorites ----------- Power Light Nuclear Core Engine Ion Engine Power Core Light Nuclear Core Propulsion Improved Treads Treads Improved Treads Utility Small Storage Unit Device Structural Scanner Storage Small Storage Unit Processor Targeting Computer Protection Hardened Light Armor Plating Weapon Assault Rifle Energy Gun Small Laser Ballistic Gun Assault Rifle Build | -11 -10 -10 ------- Run | Yrd Mat Min Slots Evolved . | . . . Power . | . . . Propulsion . | . . . Utility . | . . . Weapon . | . . . Parts Attached 32 | 9 17 6 Power 5 | 2 2 1 Engine 4 | 2 1 1 Core 1 | . 1 . Reactor . | . . . Propulsion 7 | 2 5 . Treads 7 | 2 5 . Leg . | . . . Wheel . | . . . Hover . | . . . Flight . | . . . Utility 12 | 2 5 5 Device 5 | 1 2 2 Storage 2 | 1 1 . Processor 1 | . 1 . Hackware . | . . . Protection 4 | . 1 3 Artifact . | . . . Weapon 8 | 3 5 . Energy Gun 1 | 1 . . Energy Cannon . | . . . Ballistic Gun 7 | 2 5 . Ballistic Cannon . | . . . Launcher . | . . . Special Weapon . | . . . Impact Weapon . | . . . Slashing Weapon . | . . . Piercing Weapon . | . . . Special Melee Weapon . | . . . Unidentified Prototypes . | . . . Parts Lost 2 | . 2 . Power 1 | . 1 . Propulsion . | . . . Utility . | . . . Weapon 1 | . 1 . Highest Loss Streak 1 | . 1 . To Critical Strikes . | . . . Average Slot Usage (%) 99 | . 99 100 Engine 5 | . 4 14 Core 8 | . 9 . Treads 27 | . 27 28 Device 10 | . 10 7 Storage 14 | . 14 14 Processor 1 | . 1 . Protection 2 | . 2 6 Ballistic Gun 28 | . 28 28 Naked Turns . | . . . Heaviest Build 34 | 14 34 34 Greatest Support 46 | 40 46 46 Greatest Overweight (x) 1 | 1 . . Average Overweight (x) . | . . . Largest Inventory Capacity 15 | 8 15 15 Average Capacity 10 | 7 9 15 Most Carried 15 | 4 15 15 Average Carried 9 | 2 8 15 Final Capacity 15 | 8 15 15 Final Carried 15 | 4 15 15 Class Distribution -------------------- 100% | Mutant Dominant Class ---------------- Mutant | -10/Materials Mutant | -10/Mines Resources | -11 -10 -10 ----------- Run | Yrd Mat Min Matter Collected 959 | 306 517 136 Remotely . | . . . Salvage Created 996 | 98 765 133 Parts 73 | 9 54 10 Haulers Intercepted 2 | . 2 . Recyclers Shooed . | . . . Parts Field Recycled . | . . . Retrieved Matter . | . . . Parts Self-Destructed . | . . . Prevented . | . . . Kills | -11 -10 -10 ------- Run | Yrd Mat Min Combat Hostiles Destroyed 21 | . 16 5 Guns 21 | . 16 5 Classes Destroyed 9 | 3 6 . Worker 2 | 1 1 . Builder 1 | . 1 . Tunneler 1 | 1 . . Hauler 2 | . 2 . Recycler 1 | 1 . . Operator 2 | . 2 . Watcher 1 | . 1 . Swarmer 6 | . 3 3 Grunt 15 | . 13 2 Best Kill Streak 4 | 1 4 3 Combat Bots Only 4 | . 4 3 Max Kills in Single Turn 2 | 1 1 2 Gunslinging 1 | . . 1 Exploded . | . . . Melee . | . . . Uniques/NPCs Destroyed . | . . . Combat | -11 -10 -10 -------- Run | Yrd Mat Min Hostile Shots Fired 122 | . 86 36 Missed 32 | . 26 6 Damage Taken 1373 | . 753 620 Core 254 | . 132 122 Absorbed by Shields . | . . . Regen/Repaired (Parts) 99 | . 99 . Core Remaining (%) 100 | 100 . . Volleys Fired 101 | 4 80 17 Largest 2 | 2 2 2 Hottest 40 | 40 40 40 Shots Fired 202 | 8 160 34 Gun 202 | 8 160 34 Cannon . | . . . Launcher . | . . . Special . | . . . Kinetic 202 | 8 160 34 Thermal . | . . . Explosive . | . . . Electromagnetic . | . . . Robot Hit Streak 8 | 6 8 6 Robot Miss Streak 4 | . 4 3 Penetration Max . | . . . Secondary Targets 2 | . . 2 Max Gunslinging Chain 1 | . . 1 Shots Hit Robots 135 | 6 108 21 Core Hits 56 | 4 42 10 Critical Kills 1 | . . 1 Critical Parts Destroyed . | . . . Critical Strikes 1 | . . 1 Destroy 1 | . . 1 Melee Attacks . | . . . Impact . | . . . Slashing . | . . . Piercing . | . . . Sneak Attacks . | . . . Combat Hostiles . | . . . Follow-up Attacks . | . . . Damage Inflicted 1484 | 61 1164 259 Guns 1484 | 61 1164 259 Cannons . | . . . Explosions . | . . . Melee . | . . . Ramming . | . . . Kinetic 1484 | 61 1164 259 Thermal . | . . . Explosive . | . . . Electromagnetic . | . . . Impact . | . . . Slashing . | . . . Piercing . | . . . Highest Corruption 1 | . 1 1 Average Corruption 1 | . 1 1 Corruption Purged . | . . . Corruption Blocked . | . . . Effects 10 | . 10 . Matter Fused 4 | . 4 . Energy Discharges 3 | . 3 . Data Loss (minor) 2 | . 2 . Data Loss (major) 1 | . 1 . Overload Shots . | . . . Overflow Damage . | . . . Projectiles . | . . . Explosions . | . . . Melee . | . . . Knockbacks . | . . . Impact . | . . . Kinetic . | . . . Secondary . | . . . Self-Inflicted Damage . | . . . Shots . | . . . Rammed . | . . . Targets Rammed . | . . . Kicked . | . . . Crushed . | . . . Highest Temperature 41 | . 41 32 Average Temperature 10 | . 8 17 Received Heat Transfer 435 | . 363 72 Siege Activations . | . . . Robots Corrupted . | . . . Combat Hostiles . | . . . Parts Fried . | . . . Impact Corruptions . | . . . Robots Melted . | . . . Combat Hostiles . | . . . Parts Melted . | . . . Heat Transferred . | . . . Parts Sabotaged . | . . . Parts Stolen . | . . . Parts Stripped . | . . . Power Chain Reactions . | . . . Alert | -11 -10 -10 ------- Run | Yrd Mat Min Peak Influence 300 | 15 300 150 Initial 30 | . 9 30 Average 139 | 4 153 116 Maximum Alert Level 1 | . 1 . Low Security (%) 79 | 100 73 100 Level 1 20 | . 26 . Level 2 . | . . . Level 3 . | . . . Level 4 . | . . . Level 5 . | . . . High Security . | . . . Max Security . | . . . Squads Dispatched 5 | . 5 . Investigation 2 | . 2 . Extermination . | . . . Reinforcement 3 | . 3 . Assault . | . . . Garrison . | . . . Intercept . | . . . Searches Triggered . | . . . Construction Impeded . | . . . Haulers Reinforced . | . . . Active Scanning Responses . | . . . Cargo Convoy Interrupts . | . . . Stealth | -11 -10 -10 --------- Run | Yrd Mat Min Distress Signals . | . . . Communications Jammed . | . . . Distress Signals . | . . . Times Spotted 35 | . 29 6 Peak Tracking Total 4 | . 4 3 Tactical Retreats . | . . . Traps | -11 -10 -10 ------- Run | Yrd Mat Min Traps Triggered 2 | . 2 . Indirectly . | . . . Trap Hack Attempts . | . . . Triggered . | . . . Disarmed . | . . . Reprogrammed . | . . . Reused . | . . . Traps Extracted . | . . . Installed . | . . . Triggered . | . . . Machines | -11 -10 -10 ---------- Run | Yrd Mat Min Machines Disabled . | . . . Max in Single Turn . | . . . Machines Repaired . | . . . Machines Dismantled . | . . . Machines Sabotaged . | . . . Overloaded Fab Kills . | . . . Hacking | -11 -10 -10 --------- Run | Yrd Mat Min Machines Accessed 6 | . 6 . Terminals 4 | . 4 . Fabricators . | . . . Repair Stations 1 | . 1 . Recycling Units 1 | . 1 . Scanalyzers . | . . . Garrison Access . | . . . Total Hacks 17 | . 17 . Successful 12 | . 12 . Failed 5 | . 5 . Catastrophic 1 | . 1 . Database Lockouts . | . . . Manual 11 | . 11 . Terminals 11 | . 11 . Fabricators . | . . . Repair Stations 4 | . 4 . Recycling Units 2 | . 2 . Scanalyzers . | . . . Garrison Access . | . . . Terminal Hacks 1 | . 1 . Zone Layout 1 | . 1 . Fabricator Hacks . | . . . Repair Station Hacks 4 | . 4 . Scan Component 2 | . 2 . Repair 2 | . 2 . Recycling Unit Hacks 1 | . 1 . Retrieve Components 1 | . 1 . Scanalyzer . | . . . Garrison Access Hacks . | . . . Unauthorized Hacks 6 | . 6 . Terminals 6 | . 6 . Assimilate 1 | . 1 . Botnet 4 | . 4 . Operators 1 | . 1 . Fabricators . | . . . Repair Stations . | . . . Recycling Units . | . . . Scanalyzers . | . . . Garrison Access . | . . . Data Cores Recovered . | . . . Used . | . . . Hacking Detections 4 | . 4 . Full Trace Events 2 | . 2 . Feedback Events 1 | . 1 . Corruption 1 | . 1 . Feedback Blocked . | . . . Robot Schematics Acquired . | . . . Robots Built . | . . . Authchips . | . . . Time . | . . . Total Robot Build Rating . | . . . Part Schematics Acquired . | . . . Parts Built . | . . . Authchips . | . . . Time . | . . . Total Part Build Rating . | . . . Parts Repaired 2 | . 2 . Time 58 | . 58 . Parts Recycled . | . . . Recycled Matter . | . . . Retrieved Matter . | . . . Retrieved Components 10 | . 10 . Parts Scanalyzed . | . . . Part Schematics Acquired . | . . . Parts Damaged . | . . . Bothacking | -11 -10 -10 ------------ Run | Yrd Mat Min Used RIF Installer . | . . . Robots Hacked . | . . . Non-combat . | . . . Combat . | . . . Robot Hacks Applied . | . . . Relay Couplers Released . | . . . Fabnet Peak Effective % . | . . . Robots Rewired . | . . . Allies Hacked . | . . . Hacks Repelled . | . . . Allies | -11 -10 -10 -------- Run | Yrd Mat Min Total Allies . | . . . Largest Group . | . . . Highest-Rated Group . | . . . Highest-Rated Ally . | . . . Total Orders . | . . . Ally Attacks . | . . . Total Damage . | . . . Kills . | . . . Allies Corrupted . | . . . Allies Melted . | . . . Intel | -11 -10 -10 ------- Run | Yrd Mat Min Robot Analysis Total . | . . . Derelict Logs Recovered . | . . . Drone Launches . | . . . Drone Recoveries . | . . . Exploration | -11 -10 -10 ------------- Run | Yrd Mat Min Turns Passed 2005 | 118 1560 327 Spaces Moved 966 | 61 737 168 Core 7 | 7 . . Treads 959 | 54 737 168 Legs . | . . . Wheels . | . . . Hover . | . . . Flight . | . . . Fastest Speed 50 | 50 160 160 Average Speed 159 | 149 160 160 Slowest Speed 160 | 160 160 160 Overloaded Moves . | . . . Propulsion Burnouts . | . . . Robots Hopped . | . . . Cave-ins Triggered . | . . . Exploration Rate (%) 45 | 5 89 43 Regions Visited 2 Branch Regions 1 Pre-discovered Areas . | . . . Known Exits Taken . | . . . Unknown Exits Taken 2 | 1 1 . Scrap Searched 1 | . . 1 Spaces Dug . | . . . Terrain Destroyed . | . . . Melee . | . . . Projectile . | . . . AOE . | . . . Terrain Rammed . | . . . Walls Destroyed . | . . . Machines Disabled . | . . . Actions | -11 -10 -10 --------- Run | Yrd Mat Min Total 1253 | 76 985 192 Wait 97 | . 97 . Move 964 | 60 736 168 Hop . | . . . Pick Up 31 | 3 28 . Fast Attach 11 | 7 4 . Attach 2 | . 2 . Detach 2 | . 2 . Swap 19 | 2 11 6 Drop 26 | . 25 1 Fire 101 | 4 80 17 Melee . | . . . Ram . | . . . Kick . | . . . Crush . | . . . Escape Stasis . | . . . Rewire . | . . . Trap . | . . . Miscellaneous . | . . . Route ------- -11/Scrapyard -10/Materials (discovered 4 exits: [*Mat x2] / [*Min x2]) -10/Mines History --------- Turn | Location | Event 17 | -11/Scrapyard | Discovered new exit (range 16) 119 | -11/Scrapyard | Entered Materials 305 | -10/Materials | Build established: Mutant 543 | -10/Materials | Discovered new exit (range 12) 869 | -10/Materials | Discovered new exit (range 16) 1138 | -10/Materials | Discovered new exit (range 8) 1520 | -10/Materials | Discovered new exit (range 15) 1596 | -10/Materials | Repaired Imp. Treads 1654 | -10/Materials | Repaired Lgt. Treads 1678 | -10/Materials | Core integrity fell below 50% 1679 | -10/Materials | Entered Mines 2005 | -10/Mines | Core integrity fell below 20% 2006 | -10/Mines | Destroyed by YI-UF0 with YI-UF0's Doublenader Last Messages --------------- 01934_ Found Sml. Storage Unit. 01934_ Found 32 Matter. 01958_ Acquired 10 matter. 01961_ The unstable cave ceiling collapses. 01972_ U-05 Engineer lays Concrete. 01974_ U-05 Engineer builds a Wall. 01979_ U-05 Engineer lays Concrete. 01981_ U-05 Engineer builds a Wall. 01986_ U-05 Engineer lays Concrete. 01988_ U-05 Engineer builds a Wall. 01991_ The unstable cave ceiling collapses. 01992_ U-05 Engineer lays Concrete. 01994_ U-05 Engineer builds a Wall. 01998_ The unstable cave ceiling collapses. 01999_ U-05 Engineer lays Concrete. 02001_ The unstable cave ceiling collapses. 02001_ U-05 Engineer builds a Wall. 02002_ The unstable cave ceiling collapses. 02006_ YI-UF0 mumbles something. 02006_ U-05 Engineer lays Concrete. Map ----- +----------------------------------------------------+ | #### * ##??????????????????????????????? | | #######= [= ##???????????????????##?????????? | | #########% ##?????????????????? ##????????? | | ###?###### ###?????????????????? ##?####??? | | # ####?## ###?????????????????? ####### | | ## ####?##%### #####?????########### | | ## ######*### #################### ?? | | ## #####[### #########= ##???????? | | ### #### ## #### ##!%! ####???????? | | #### ## ## ### ###?????????? | | ?############# ### =* ###?????????? | | ??############ ##### =% ##??????????? | | ??????????### ####### ![###??????????? | | ??????????## #### #####?## ######??????? | | ?????????? # ###########??## # | | ?????????? ## ###########???# k###### #??????? | | ?????????? #######???????????# #?????????????? | | ???????????#####????????????### #?????????????? | | ????????????????????????#### ## #?????????????? | | ???????????????????????## t #?????????????? | | ??????????????????###### # # ##?????????????? | | ?????????????????##; # ##?????????????? | | ?????????????????#; ##????????????? | | ?????????????????#; ### #??????? | | ?????????????????# #?????? | | ???????????????###; @ #### # #?????? | | ???????????????# ! #????????????? | | ??????????????# u# #???????????? | | ??????????????# # #???????????? | | ?????????????# ### # #???????????? | | ????????????# % # #####?# %###???????????? | | ????????????# ##??????# $ ##????????????? | | ???????????? ?????????# ##????????????? | | ????????????? g ?????????# #?????????????? | | ????????????? ??????????## #?????????????? | | ?????????????? ???????????? #?????????????? | | ?????????????? ! ????????????? #?????????????? | | ???????????????? ????????????? ?????????????? | | ??????????????????=?????????????? ?????????????? | | ?????????????????????????????????????????????????? | | ?????????????????????????????????????????????????? | | ?????????????????????????????????????????????????? | | ?????????????????????????????????????????????????? | | ?????????????????????????????????????????????????? | | ?????????????????????????????????????????????????? | | ?????????????????????????????????????????????????? | | ?????????????????????????????????????????????????? | | ?????????????????????????????????????????????????? | | ?????????????????????????????????????????????????? | | ?????????????????????????????????????????????????? | +----------------------------------------------------+ Best States ------------- Heat Dissipation 25 Energy Generation 14 Energy Capacity 250 Matter Stores 300 Matter Capacity 300 Sight Range 16 Terrain Scan Range 16 Terrain Scan Density 10 Armor Coverage 150 Evasion (%) 40 Targeting Accuracy 5 Recoil Reduction 2 Item Schematics ----------------- None Robot Schematics ------------------ None Fabricated ------------ Nothing Alien Tech Used ----------------- None Achievements -------------- None Challenges ------------ None Game ------ Seed UltimateHardlightCalibrator Manual? 0 Play Time 00:14:12 Cumulative 109.2 hours Start 2024.04.24 @ 19:33:01 End 2024.04.24 @ 19:44:56 Sessions 1 Manual Loads 0 Difficulty Rogue Special Mode None Game No. 125 Rogue 125 Adventurer 0 Explorer 0 Win Type - Total 0 Types 0/0/0/0/0/0/0/0/0 Lore% 29 Gallery% 54 Achievement% 41 Wizard Run 0 Options --------- Layout 1 ASCII 0 Keyboard 1 Movement Vi Keybinds 0 Fullscreen 1 Font 24/Smallcaps Map View 50x35 Zoom Use 0% Tactical HUD 1 Map Filters NONE Filters NONE Steam 1 RUN: 1d3c7d1c-fb59-4ff1-8e74-7ebde06e8a7a